Workbook

Sheet меню 5-11район
A3: Согласовано | K3: Утверждаю
A4: Директор ООО "ЭТАЛОН +" | K4: Директор МБОУ СОШ
A5: Подин В.А. | K5: ____________________________________
A6: ____________________________________ | K6: ____________________________________
A10: Рецептура | B10: Наименование блюд | C10: Выход.гр | D10: Белки,гр | E10: Жиры,гр | F10: Углеводы, | G10: Калорийность. | H10: Вит.В1 | I10: Вит.с | J10: Вит.А,мг | K10: Вит ,Е.,мг | L10: Са,мг | M10: Р.мг | N10: Mg.мг | O10: Fе,мг
B12: 5-11 классы | E12: 1 день
A13: Де Ли .2011-544с №174 | B13: каша молочная с маслом гречневая | C13: 150/5 | D13: 8.4 | E13: 11.8 | F13: 44.4 | G13: 317.2 | H13: 0.2 | I13: 0.1 | J13: 0.5 | K13: 1.5 | L13: 117.8 | M13: 177.3 | N13: 48.8 | O13: 1.5
A14: №413.2004г | B14: колбасные изделия | C14: 50 | D14: 7.4 | E14: 9.45 | F14: 0.8 | G14: 108 | H14: 0.03 | I14: - | J14: - | K14: 0.5 | L14: 25 | M14: 139.001 | N14: 15 | O14: 1.8
B15: Хлеб белый .1с | C15: 30 | D15: 2.28 | E15: 0.24 | F15: 14.76 | G15: 71 | H15: 0.033 | I15: - | J15: - | K15: 0.33 | L15: 6 | M15: 19.5 | N15: 4.2 | O15: 0.33
A16: №138.2004 | B16: суп картоф. С крупой | C16: 250/10 | D16: 11.2 | E16: 12.5 | F16: 21.3 | G16: 245.9 | H16: 0.2 | I16: 4.5 | J16: 0.2 | K16: 3.4 | L16: 32.9 | M16: 69.3 | N16: 157.5 | O16: 3
A17: Де Ли .2011 | B17: чай с сахаром | C17: 200/15 | D17: 0.53 | E17: - | F17: 9.47 | G17: 40 | H17: - | I17: 0.27 | J17: - | K17: - | L17: 13.6 | M17: 22.13 | N17: 11.73 | O17: 0.1
A18: итого | D18: =SUM(D13:D17) -> 29.81 | E18: 33.99 | F18: 90.73 | G18: 782.1 | H18: 0.463 | I18: 4.87 | J18: 0.7 | K18: 5.73 | L18: 195.3 | M18: 427.231 | N18: 237.23 | O18: 6.73
B19: ГПД
A20: ДеЛи 2011 544с №376 | B20: Чай с сахаром | C20: 200/15 | D20: 0.53 | E20: - | F20: 9.47 | G20: 40 | H20: - | I20: 0.27 | J20: - | K20: - | L20: 13.6 | M20: 22.13 | N20: 11.73 | O20: 0.1
A21: №465.2010 | B21: печенье | C21: 40 | D21: 2.4 | E21: 1.9 | F21: 30 | G21: 146.4 | H21: 0 | I21: 0 | J21: 0 | K21: 0 | L21: 4.4 | M21: 20 | N21: 3.6 | O21: 0.3
A22: итого | D22: =SUM(D20:D21) -> 2.93 | E22: =SUM(E21) -> 1.90 | F22: =SUM(F20:F21) -> 39.47 | G22: =SUM(G20:G21) -> 186.4 | H22: 0.000 | I22: =SUM(I20:I21) -> 0.27 | J22: =SUM(J21) -> 0 | K22: =SUM(K21) -> 0 | L22: =SUM(L20:L21) -> 18 | M22: =SUM(M20:M21) -> 42.13 | N22: =SUM(N20:N21) -> 15.33 | O22: =SUM(O20:O21) -> 0.40
B23: 5-11 классы | E23: 2 день
A24: Де Ли .2011 №304 | B24: рис отварной | C24: 150 | D24: 3.834 | E24: 5.434 | F24: 29.6 | G24: 210 | H24: 0.044 | I24: - | J24: 0.18 | K24: 0.284 | L24: 11.46 | M24: 84.15 | N24: 13.33 | O24: 0.01
A25: Де Ли 2011 3234 | B25: котлеты рыбные | C25: 60 | D25: 6.45 | E25: 4.24 | F25: 7.49 | G25: 116 | H25: 0.05 | I25: 0.48 | J25: 0.1 | K25: 0.646 | L25: 44.02 | M25: 137.06 | N25: 12 | O25: 0
B26: Хлеб сельский 1с | C26: 20 | D26: 1.3 | E26: 0.2 | F26: 7 | G26: 35 | H26: 0 | I26: 0 | J26: 0 | K26: 0 | L26: 12.5 | M26: 5.7 | N26: 7.4 | O26: 0.7
A27: ДеЛи 2011.5443119 | B27: суп карт.с гор. | C27: 250/10 | D27: 14.9 | E27: 12.1 | F27: 15.2 | G27: 230.2 | H27: 0.3 | I27: 0.2 | J27: 5.1 | K27: 7.1 | L27: 112.7 | M27: 230.7 | N27: 80 | O27: 5.2
B28: Хлеб белый 1с | C28: 30 | D28: 2.28 | E28: 0.24 | F28: 14.76 | G28: 71 | H28: 0.033 | I28: - | J28: - | K28: 0.33 | L28: 6 | M28: 19.5 | N28: 4.2 | O28: 0.33
A29: итого | D29: =SUM(D24:D28) -> 28.764 | E29: 22.214 | F29: 74.05 | G29: 662.2 | H29: 0.427 | I29: 0.68 | J29: 5.38 | K29: 8.36 | L29: 186.68 | M29: 477.11 | N29: 116.93 | O29: 6.24
B30: ГПД
A31: Де ли .20111 - 544 с №81 | B31: борщ из свежей капусты | C31: 250/10 | D31: 6 | E31: 8.7 | F31: 14.5 | G31: 164.2 | H31: 0 | I31: 0.2 | J31: 9 | K31: 1.9 | L31: 47.3 | M31: 89.1 | N31: 29.1 | O31: 1.8
A32: Де Ли .2011-544с №349 | B32: Компот из сухофруктов | C32: 200 | D32: 0 | E32: 0 | F32: 19.4 | G32: 77.4 | H32: 0 | I32: 0 | J32: 0 | K32: 0 | L32: 0.4 | M32: 0 | N32: 0 | O32: 0
B33: Хлеб сельский 1с | C33: 20 | D33: 2.1 | E33: 0.41 | F33: 16.24 | G33: 77.06 | H33: 0.06 | I33: 0 | J33: 0 | K33: 1.27 | L33: 12.75 | M33: 46.13 | N33: 17.25 | O33: 0.86
A34: итого | D34: 8.1 | E34: 9.11 | F34: 50.14 | G34: 318.66 | H34: 0.06 | I34: 0.2 | J34: 9 | K34: 3.17 | L34: 60.45 | M34: 135.23 | N34: 46.35 | O34: 2.66
B35: 5-11 классы | E35: 3 день
A36: Де Ли .2011-544с №202 | B36: макароны отвар. | C36: 150 | D36: 5.1 | E36: 4.468 | F36: 28.5 | G36: 187 | H36: 0.087 | I36: - | J36: 0.1 | K36: 0.816 | L36: 16.457 | M36: 57.009 | N36: 8.479 | O36: 0.869
B37: каша ячневая молоч с маслом | C37: 150/10 | D37: 8.4 | E37: 11.8 | F37: 44.4 | G37: 317.2 | H37: 0.2 | I37: 0.1 | J37: 0.5 | K37: 1.5 | L37: 117.8 | M37: 177.3 | N37: 48.8 | O37: 1.5
A38: Де Ли .2011 544с №376 | B38: чай с сахаром | C38: 200/15 | D38: 0.53 | E38: - | F38: 9.47 | G38: 40 | H38: - | I38: 0.27 | J38: - | K38: - | L38: 13.6 | M38: 22.13 | N38: 11.73 | O38: 0.1
B39: хлеб белый.1с | C39: 30 | D39: 2.28 | E39: 0.24 | F39: 14.76 | G39: 71 | H39: 0.033 | I39: - | J39: - | K39: 0.33 | L39: 6 | M39: 19.5 | N39: 4.2 | O39: 0.33
A40: Де Ли .2011-544с №294 | B40: котлета из птицы | C40: 60 | D40: 10.24 | E40: 5.37 | F40: 19.36 | G40: 159 | H40: 0.08 | I40: 0 | K40: - | L40: 89.43 | M40: 158 | N40: 0.64 | O40: 0.3
B41: итого | D41: =SUM(D36:D40) -> 26.55 | E41: =SUM(E36:E40) -> 21.878 | F41: =SUM(F36:F40) -> 116.49 | G41: =SUM(G36:G40) -> 774.2 | H41: =SUM(H36:H40) -> 0.4 | I41: =SUM(J36:J40) -> 0.6 | J41: 0.100 | K41: =SUM(K36:K40) -> 2.65 | L41: =SUM(L36:L40) -> 243.287 | M41: =SUM(M36:M40) -> 433.939 | N41: =SUM(N36:N40) -> 73.849 | O41: =SUM(O36:O40) -> 3.10
B42: ГПД
A43: Де Ли .2011-544с №119 | B43: суп картофельный с горохом | C43: 250/10 | D43: 11.2 | E43: 12.5 | F43: 21.3 | G43: 245.9 | H43: 0.2 | I43: 4.5 | J43: 0.2 | K43: 3.4 | L43: 32.9 | M43: 69.3 | N43: 157.5 | O43: 3
B44: завитушка булочка | C44: 50 | D44: 8.5 | E44: 3.8 | F44: 57.6 | G44: 134.4 | H44: 0.49 | I44: 0.42 | J44: 0 | K44: 0.02 | L44: 15 | M44: 18 | N44: 4.5 | O44: 0.3
B45: кисель | C45: 200 | D45: 1.00 | E45: 0.05 | F45: 27.5 | G45: 110 | H45: 0.01 | I45: 0.8 | J45: 0.5 | K45: 0 | L45: 28.69 | M45: 18.27 | N45: 0.67 | O45: 0.32
B46: Хлеб сельский 1с | C46: 20 | D46: 2.1 | E46: 0.41 | F46: 16.24 | G46: 77.06 | H46: 0.06 | I46: 0 | J46: 0 | K46: 1.27 | L46: 12.75 | M46: 46.13 | N46: 17.25 | O46: 0.86
B47: итого | D47: =SUM(D43:D46) -> 22.8 | E47: 16.76 | F47: 122.64 | G47: 567.36 | H47: 0.76 | I47: 5.72 | J47: 0.7 | K47: 4.69 | L47: 89.34 | M47: 151.7 | N47: 179.92 | O47: 4.48
B48: 5-11 классы | E48: 4 день
A49: ДеЛи .2011. | B49: картофельное пюре | C49: 150 | D49: 3.09 | E49: 8.282 | F49: 22 | G49: 172 | H49: 0.164 | I49: 7.943 | J49: 0.08 | K49: 3 | L49: 47.805 | M49: 98.835 | N49: 8 | O49: 0
A50: Де Ли .2011 | B50: птица отварная | C50: 75 | D50: 23.5 | E50: 20.3 | F50: 0.4 | G50: 278.4 | H50: 0.12 | I50: 0.12 | J50: 1.12 | K50: 0.4 | L50: 17.5 | M50: 188.8 | N50: 22.8 | O50: 1.5
A51: №138.2004 | B51: суп картоф. С крупой | C51: 250/10 | D51: 11.2 | E51: 12.5 | F51: 21.3 | G51: 245.9 | H51: 0.2 | I51: 4.5 | J51: 0.2 | K51: 3.4 | L51: 32.9 | M51: 69.3 | N51: 157.5 | O51: 3
A52: №639. | B52: компот из сухофруктов | C52: 200 | D52: 0 | E52: 0 | F52: 19.4 | G52: 77.4 | H52: 0 | I52: 0 | J52: 0 | K52: 0 | L52: 0.4 | M52: 0 | N52: 0 | O52: 0
B53: хлеб | C53: 20 | D53: 2.1 | E53: 0.41 | F53: 16.24 | G53: 77.06 | H53: 0.06 | I53: 0 | J53: 0 | K53: 1.27 | L53: 12.75 | M53: 46.13 | N53: 17.25 | O53: 0.86
A54: Итого | D54: =SUM(D49:D53) -> 39.89 | E54: 41.492 | F54: 79.34 | G54: 850.76 | H54: 0.544 | I54: 12.563 | J54: 1.4 | K54: 8.07 | L54: 111.355 | M54: 403.065 | N54: 205.55 | O54: 5.36
B55: ГПД
A56: Де Ли 2011 | B56: Каша ячневая молоч с маслом | C56: 150/10 | D56: 8.4 | E56: 11.8 | F56: 44.4 | G56: 317.2 | H56: 0.2 | I56: 0.1 | J56: 0.5 | K56: 1.5 | L56: 117.8 | M56: 177.3 | N56: 48.8 | O56: 1.5
A57: №686.04 | B57: чай с сахаром и лимоном | C57: 200/15/7 | D57: 0.084 | E57: 0.012 | F57: 15.185 | G57: 62 | H57: 0.003 | I57: 2.8 | K57: 0.014 | L57: 3.25 | M57: 1.54 | N57: 0.84 | O57: 0.087
B58: хлеб белый .1с | C58: 30 | D58: 2.28 | E58: 0.24 | F58: 14.76 | G58: 71 | H58: 0.033 | I58: - | J58: - | K58: 0.33 | L58: 6 | M58: 19.5 | N58: 4.2 | O58: 0.33
A59: Итого | D59: =SUM(D56:D58) -> 10.764 | E59: 12.052 | F59: 74.345 | G59: 450.2 | H59: 0.236 | I59: 2.9 | J59: 0.5 | K59: 1.844 | L59: 127.05 | M59: 198.34 | N59: 53.84 | O59: 1.917
B60: 5-11 классы | E60: 5 день
A61: Де Ли .2011 | B61: рассольник Ленинградский | C61: 250/10 | D61: 6.2 | E61: 8.9 | F61: 16.3 | G61: 173.4 | H61: 0.1 | I61: 0.2 | J61: 6.6 | K61: 2.2 | L61: 35.1 | M61: 100.8 | N61: 28.2 | O61: 1.6
A62: 171 | B62: Каша гречневая вязкая | C62: 150 | D62: 4.5 | E62: 5.3 | F62: 20.5 | G62: 177 | H62: 0.16 | I62: 0 | J62: 0 | K62: 2.6 | L62: 21.2 | M62: 102.3 | N62: 38.3 | O62: 2.4
A63: №413.2004г | B63: колбасные изделия | C63: 50 | D63: 7.4 | E63: 9.45 | F63: 0.8 | G63: 108 | H63: 0.03 | I63: - | J63: - | K63: 0.5 | L63: 25 | M63: 139.001 | N63: 15 | O63: 1.8
A64: Де Ли .2011 | B64: Компот из сухофруктов | C64: 200 | D64: 0 | E64: 0 | F64: 19.4 | G64: 77.4 | H64: 0 | I64: 0 | J64: 0 | K64: 0 | L64: 0.4 | M64: 0 | N64: 0 | O64: 0
A65: Де Ли .2011 544с №376 | B65: чай с сахаром | C65: 200/15 | D65: 0.53 | E65: - | F65: 9.47 | G65: 40 | H65: - | I65: 0.27 | J65: - | K65: - | L65: 13.6 | M65: 22.13 | N65: 11.73 | O65: 0.1
B66: Хлеб сельский 1с | C66: 20 | D66: 2.28 | E66: 0.24 | F66: 14.76 | G66: 71 | H66: 0.033 | I66: - | J66: - | K66: 0.33 | L66: 6 | M66: 19.5 | N66: 4.2 | O66: 0.33
A67: Итого | D67: =SUM(D61:D66) -> 20.91 | E67: 23.89 | F67: 81.23 | G67: 646.8 | H67: 0.323 | I67: 0.47 | J67: 6.6 | K67: 5.63 | L67: 101.3 | M67: 383.731 | N67: 97.43 | O67: 6.23
B68: ГПД
A69: №138.2004 | B69: Суп картофельный с крупой | C69: 250/10 | D69: 11.2 | E69: 12.5 | F69: 21.3 | G69: 245.9 | H69: 0.2 | I69: 4.5 | J69: 0.2 | K69: 3.4 | L69: 32.9 | M69: 69.3 | N69: 157.5 | O69: 3
A70: Де Ли 2011 3234 | B70: чай с сахаром | C70: 200/15 | D70: 0.53 | E70: 0.000 | F70: 9.47. | G70: 40 | H70: 0.000 | I70: 0.27 | J70: 13.6. | K70: 22.13. | L70: 11.73. | M70: 0.1 | N70: 0.000 | O70: 0.00
B71: хлеб бел .1с | C71: 30 | D71: 2.28. | E71: 0.24 | F71: 14.76. | G71: 71 | H71: 0.033 | I71: 0.00
A72: итого | D72: 14.01. | E72: 12.90. | F72: 60.29. | G72: 356.90 | H72: 0.233 | I72: 1977-04-01 | J72: 18.57 | K72: 25.53 | L72: 44.63 | M72: 69.40 | N72: 157.5 | O72: 3.00
B73: 5-11 классы | E73: 6 день
A74: 204 | B74: Макароны отварны с сыром | C74: 150 | D74: 10.1 | E74: 10.3 | F74: 35.9 | G74: 278.3 | H74: 0.1 | I74: 0.1 | J74: 0 | K74: 1.3 | L74: 178.1 | M74: 132.8 | N74: 15.8 | O74: 1.2
B75: хлеб сельский 1с | C75: 20 | D75: 2.28. | E75: 0.24 | F75: 14.76 | G75: 71 | H75: 0.033 | I75: 0.00 | J75: 0.000 | K75: 0.33 | L75: 6 | M75: 19.5. | N75: 4.2. | O75: 0.33.
A76: 388 | B76: Напиток из шиповника | C76: 200 | D76: 0.7 | E76: 0.3 | F76: 28.8 | G76: 132.5 | H76: 0 | I76: 0.2 | J76: 80 | K76: 0 | L76: 18.9 | M76: 3.1 | N76: 4.8 | O76: 0.5
A77: Итого | D77: =SUM(D74:D76) -> 10.8 | E77: 10.6 | F77: 64.7 | G77: 481.8 | H77: 0.1 | I77: 0.3 | J77: 80 | K77: 1.3 | L77: 203 | M77: 135.9 | N77: 20.6 | O77: 1.7

Sheet Титульник
B2: Согласовано | I2: Утверждаю
B3: Директор ООО "ЭТАЛОН+" | I3: Директор МБОУ СОШ
B6: __________________________________ В.А.Подин | I6: _______________________________
E13: Примерное двенадцатидневное меню
E14: (сезон зимний)
D16: Для организации горячего питания для обучающихся 5-11 классов общеобразовательных
E18: организаций Азнакаевского района на 2020-2021 учебный год.
